[Event "8th Amsterdam Summer Open-A 2018"]
[Site "Amsterdam"]
[Date "2018.07.13"]
[Round "7"]
[White "Elgersma, Onno"]
[Black "Theulings, Paul-Peter"]
[Result "1-0"]
[ECO "A08"]
[WhiteElo "2150"]
[BlackElo "2088"]
[Annotator "NA"]
[PlyCount "69"]
[EventDate "2018.07.07"]
[EventType "swiss"]
[EventCountry "NED"]
[SourceTitle "playchess.com"]
[Source "ChessBase"]
[SourceQuality "1"]
[TimeControl "40/5400+30:1800+30"]

1. Nf3 {[%emt 0:15:48]} Nf6 {[%emt 0:00:00]} 2. g3 {[%emt 0:00:23]} c5 {[%emt 0:01:23]} 3. Bg2 {[%emt 0:00:00]} d5 {[%emt 0:01:39]} 4. O-O {[%emt 0:00:00]} g6 {[%emt 0:01:04]} 5. d3 {[%emt 0:00:00]} Nc6 {[%emt 0:01:40]} 6. Nbd2 {[%emt 0:01:23]} Bg7 {[%emt 0:00:33]} 7. e4 {[%emt 0:01:30]} O-O {[%emt 0:01:05]} 8. Re1 {[%emt 0:03:36]} e6 {[%emt 0:06:32] LiveBook: 212 Partien} 9. Qe2 {[%emt 0:12:00]} b6 {[%emt 0:02:13]} 10. a3 $15 {[%emt 0:06:51]} a5 {[%emt 0:05:58]} 11. c3 {[%emt 0:14:51]} Ba6 {[%emt 0:03:50]} 12. Rd1 {[%emt 0:01:21]} Re8 {[%emt 0:04:50]} 13. Ne1 {[%emt 0:03:49]} Qc7 {[%emt 0:05:05]} 14. a4 {[%emt 0:07:17]} Rad8 {[%emt 0:01:31]} 15. Rb1 {[%emt 0:07:08]} h6 {[%emt 0:03:31]} 16. h3 {[%emt 0:03:11]} Rd7 {[%emt 0:05:02]} 17. Qe3 {[%emt 0:03:52]} Red8 {[%emt 0:02:23]} 18. exd5 {[%emt 0:09:42]} Nxd5 {[%emt 0:01:02]} 19. Qe4 {[%emt 0:01:50]} Ne5 {[%emt 0:04:53]} 20. Ndf3 {[%emt 0:02:20]} Nxd3 {[%emt 0:10:34]} 21. Rxd3 {[%emt 0:01:56]} Bxd3 {[%emt 0:00:47]} 22. Nxd3 {[%emt 0:00:03]} Nf6 {[%emt 0:00:27]} 23. Qe5 {[%emt 0:00:34]} Qc6 {[%emt 0:03:26]} 24. Nde1 {[%emt 0:00:34]} Qxa4 {[%emt 0:01:06]} 25. Qe2 {[%emt 0:00:37]} Qa2 {[%emt 0:02:33]} 26. Qc2 {[%emt 0:00:05]} Rd1 {[%emt 0:01:40]} 27. Bf1 {[%emt 0:00:12]} a4 {[%emt 0:04:10]} 28. Be2 {[%emt 0:00:10]} R1d7 {[%emt 0:00:43]} 29. Ne5 {[%emt 0:00:13]} Rd5 {[%emt 0:01:50]} 30. Bc4 {[%emt 0:00:16]} Qxb1 {[%emt 0:06:29]} 31. Qxb1 {[%emt 0:00:06]} Rxe5 {[%emt 0:00:05]} 32. Nf3 {[%emt 0:00:25]} Rd1+ {[%emt 0:01:15]} 33. Kg2 {[%emt 0:00:22]} Rf5 {[%emt 0:02:39]} 34. Qc2 {[%emt 0:01:36]} Rd8 {[%emt 0:00:29]} 35. g4 {[%emt 0:00:08]} 1-0

[Event "8th Amsterdam Summer Open-A 2018"]
[Site "Amsterdam"]
[Date "2018.07.13"]
[Round "7"]
[White "Cornelisse, John"]
[Black "Romkes, Abel"]
[Result "1-0"]
[ECO "E54"]
[WhiteElo "2132"]
[BlackElo "2018"]
[Annotator "NA"]
[PlyCount "67"]
[EventDate "2018.07.07"]
[EventType "swiss"]
[EventCountry "NED"]
[SourceTitle "playchess.com"]
[Source "ChessBase"]
[SourceQuality "1"]
[TimeControl "40/5400+30:1800+30"]

1. c4 {[%emt 0:00:00]} Nf6 {[%emt 0:00:00]} 2. Nc3 {[%emt 0:00:00]} e6 {[%emt 0:00:00]} 3. d4 {[%emt 0:00:31]} Bb4 {[%emt 0:00:00]} 4. e3 {[%emt 0:00:06]} O-O {[%emt 0:00:16]} 5. Bd3 {[%emt 0:00:10]} c5 {[%emt 0:00:18]} 6. Nf3 {[%emt 0:00:32]} d5 {[%emt 0:00:11]} 7. O-O {[%emt 0:00:15]} dxc4 {[%emt 0:00:46]} 8. Bxc4 {[%emt 0:00:07]} cxd4 {[%emt 0:00:08]} 9. exd4 {[%emt 0:00:04]} b6 {[%emt 0:00:08]} 10. Bg5 {[%emt 0:00:37]} Bb7 {[%emt 0:00:07]} 11. Re1 {[%emt 0:00:37]} Nbd7 {[%emt 0:02:36]} 12. Rc1 {[%emt 0:01:08]} Rc8 {[%emt 0:01:21]} 13. Qb3 {[%emt 0:02:16]} Be7 {[%emt 0:03:26]} 14. Bxf6 {[%emt 0:01:48]} Nxf6 {[%emt 0:03:02]} 15. Bxe6 {[%emt 0:02:09]} Rc7 {[%emt 0:04:09]} 16. Ng5 {[%emt 0:09:08]} Qxd4 {[%emt 0:03:33]} 17. Bxf7+ $17 {[%emt 0:09:55]} (17. Nxf7 $11 {remains equal.} Bc5 18. Nd8+ Kh8 19. Nxb7 Qxf2+ 20. Kh1 Rxb7 21. Qb5) 17... Kh8 {[%emt 0:05:32]} 18. Qd1 {[%emt 0:29:37]} Qh4 {[%emt 0:12:02]} 19. Qd2 {[%emt 0:10:03]} Ng4 {[%emt 0:12:07]} 20. Nh3 {[%emt 0:01:26]} Bc5 {[%emt 0:09:01]} 21. Bd5 {[%emt 0:10:03]} Nxf2 {[%emt 0:06:04]} 22. Nxf2 {[%emt 0:02:00]} Bxf2+ {[%emt 0:03:32]} 23. Kh1 {[%emt 0:00:40]} Bxe1 {[%emt 0:00:38]} 24. Rxe1 {[%emt 0:00:05]} Bxd5 {[%emt 0:01:22]} 25. Nxd5 {[%emt 0:00:34]} Rcf7 {[%emt 0:00:43]} 26. g3 {[%emt 0:02:05]} Qd8 {[%emt 0:03:09]} 27. Qg2 {[%emt 0:05:26]} Rd7 {[%emt 0:05:36]} 28. Nf4 {[%emt 0:00:55]} Qa8 {[%emt 0:02:35]} 29. Qxa8 {[%emt 0:02:52]} Rxa8 {[%emt 0:00:06]} 30. Kg2 {[%emt 0:00:15]} Rd2+ {[%emt 0:00:34]} 31. Kf3 {[%emt 0:00:27]} Rxb2 {[%emt 0:00:55]} 32. Re7 {[%emt 0:00:47]} Rxa2 {[%emt 0:02:03]} 33. Nh5 {[%emt 0:00:16]} g6 {[%emt 0:08:39]} 34. Nf6 {[%emt 0:00:21]} 1-0

[Event "8th Amsterdam Summer Open-A 2018"]
[Site "Amsterdam"]
[Date "2018.07.13"]
[Round "7"]
[White "Vroombout, Enrico"]
[Black "Kohler, Aran"]
[Result "0-1"]
[ECO "D44"]
[WhiteElo "2132"]
[BlackElo "2175"]
[Annotator "NA"]
[PlyCount "70"]
[EventDate "2018.07.07"]
[EventType "swiss"]
[EventCountry "NED"]
[SourceTitle "playchess.com"]
[Source "ChessBase"]
[SourceQuality "1"]
[TimeControl "40/5400+30:1800+30"]

1. d4 {[%emt 0:00:00]} d5 {[%emt 0:00:00]} 2. c4 {[%emt 0:00:00]} c6 {[%emt 0:00:00]} 3. Nf3 {[%emt 0:00:00]} Nf6 {[%emt 0:00:00]} 4. Nc3 {[%emt 0:00:00]} e6 {[%emt 0:00:00]} 5. Bg5 {[%emt 0:00:00]} dxc4 {[%emt 0:00:01]} 6. e4 {[%emt 0:00:00]} b5 {[%emt 0:00:08]} 7. e5 {[%emt 0:00:00]} h6 {[%emt 0:00:07]} 8. Bh4 {[%emt 0:00:05]} g5 {[%emt 0:00:08]} 9. Nxg5 {[%emt 0:00:04]} hxg5 {[%emt 0:00:10]} 10. Bxg5 {[%emt 0:00:03]} Be7 {[%emt 0:00:10]} 11. exf6 {[%emt 0:00:04]} Bxf6 {[%emt 0:00:05]} 12. Bxf6 {[%emt 0:00:34]} Qxf6 {[%emt 0:00:09]} 13. g3 {[%emt 0:02:59]} Na6 {[%emt 0:00:06]} 14. Ne4 {[%emt 0:10:28]} Qe7 {[%emt 0:00:27]} 15. Qf3 {[%emt 0:22:42]} f5 {[%emt 0:07:22]} 16. Nc5 $15 {[%emt 0:02:31]} Nxc5 {[%emt 0:12:54]} 17. dxc5 {[%emt 0:30:51]} Qxc5 {[%emt 0:01:11]} 18. Qc3 {[%emt 0:00:09]} O-O {[%emt 0:05:53]} 19. Rd1 {[%emt 0:08:24]} a5 {[%emt 0:01:44]} 20. Bg2 {[%emt 0:04:29]} Ra7 {[%emt 0:03:26]} 21. O-O {[%emt 0:00:29]} e5 {[%emt 0:01:01]} 22. Rfe1 {[%emt 0:01:52]} e4 {[%emt 0:00:06]} 23. Rd4 {[%emt 0:02:07]} Be6 {[%emt 0:01:12]} 24. Bxe4 {[%emt 0:01:46]} fxe4 {[%emt 0:00:07]} 25. Rexe4 {[%emt 0:00:03]} Rd7 {[%emt 0:02:57]} 26. Qe3 {[%emt 0:04:13]} Rxd4 {[%emt 0:00:34]} 27. Rxd4 {[%emt 0:00:11]} Qf5 {[%emt 0:00:14]} 28. h3 {[%emt 0:03:56]} Rf6 {[%emt 0:07:37]} 29. Rg4+ {[%emt 0:02:38]} Kf8 {[%emt 0:00:07]} 30. Qb6 {[%emt 0:01:23]} Qxf2+ {[%emt 0:00:16]} 31. Qxf2 {[%emt 0:00:12]} Rxf2 {[%emt 0:00:04]} 32. Kxf2 {[%emt 0:00:03]} Bxg4 {[%emt 0:00:06]} 33. hxg4 {[%emt 0:00:03]} b4 {[%emt 0:06:49]} 34. Ke3 {[%emt 0:00:50]} a4 {[%emt 0:01:09]} 35. Kd2 {[%emt 0:00:53]} Kf7 {[%emt 0:00:41]} 0-1

[Event "8th Amsterdam Summer Open-A 2018"]
[Site "Amsterdam"]
[Date "2018.07.13"]
[Round "7"]
[White "Brouwer, Rein"]
[Black "De Jong, Tom"]
[Result "1/2-1/2"]
[ECO "E97"]
[WhiteElo "2062"]
[BlackElo "2201"]
[Annotator "NA"]
[PlyCount "52"]
[EventDate "2018.07.07"]
[EventType "swiss"]
[EventCountry "NED"]
[SourceTitle "playchess.com"]
[Source "ChessBase"]
[SourceQuality "1"]
[TimeControl "40/5400+30:1800+30"]

1. d4 {[%emt 0:00:00]} Nf6 {[%emt 0:00:00]} 2. c4 {[%emt 0:00:00]} g6 {[%emt 0:00:00]} 3. Nc3 {[%emt 0:00:00]} Bg7 {[%emt 0:00:00]} 4. e4 {[%emt 0:00:06]} O-O {[%emt 0:00:00]} 5. Be2 {[%emt 0:00:10]} d6 {[%emt 0:00:07]} 6. Nf3 {[%emt 0:00:12]} e5 {[%emt 0:01:24]} 7. O-O {[%emt 0:00:11]} Nc6 {[%emt 0:00:19]} 8. d5 {[%emt 0:00:10]} Ne7 {[%emt 0:00:07]} 9. b4 {[%emt 0:00:34]} a5 {[%emt 0:00:23]} 10. Ba3 {[%emt 0:03:32]} axb4 {[%emt 0:00:08]} 11. Bxb4 {[%emt 0:00:02]} Re8 {[%emt 0:02:39]} 12. a4 {[%emt 0:08:56]} Bg4 {[%emt 0:06:23]} 13. h3 {[%emt 0:01:42]} Bxf3 {[%emt 0:00:30]} 14. Bxf3 {[%emt 0:00:08]} Bf8 {[%emt 0:06:24]} 15. a5 {[%emt 0:03:42]} c5 {[%emt 0:01:35]} 16. dxc6 {[%emt 0:02:36]} Nxc6 $11 {[%emt 0:00:07]} 17. Qa4 {[%emt 0:03:01]} Ra6 {[%emt 0:25:40]} 18. Nd5 {[%emt 0:05:34]} Nxd5 {[%emt 0:03:13]} 19. cxd5 {[%emt 0:00:56]} Nd4 {[%emt 0:06:23]} 20. Qd1 {[%emt 0:05:50]} b6 {[%emt 0:02:54]} 21. Be2 {[%emt 0:09:01]} Nxe2+ {[%emt 0:00:55]} 22. Qxe2 {[%emt 0:00:02]} Qa8 {[%emt 0:00:20]} 23. Ra4 {[%emt 0:07:18]} Rc8 {[%emt 0:05:23]} 24. Rfa1 {[%emt 0:01:32]} bxa5 {[%emt 0:05:52]} 25. Rxa5 {[%emt 0:03:04]} Rxa5 {[%emt 0:01:22]} 26. Rxa5 {[%emt 0:00:03]} Qb7 {[%emt 0:09:00]} 1/2-1/2

[Event "8th Amsterdam Summer Open-A 2018"]
[Site "Amsterdam"]
[Date "2018.07.14"]
[Round "8"]
[White "Kollen, Zyon"]
[Black "Hildenbrand, Peter"]
[Result "1-0"]
[ECO "C41"]
[WhiteElo "2313"]
[BlackElo "2226"]
[Annotator "NA"]
[PlyCount "99"]
[EventDate "2018.07.07"]
[EventType "swiss"]
[EventCountry "NED"]
[SourceTitle "playchess.com"]
[Source "ChessBase"]
[SourceQuality "1"]
[TimeControl "40/5400+30:1800+30"]

1. e4 {[%emt 0:00:00]} d6 {[%emt 0:00:00]} 2. d4 {[%emt 0:00:00]} Nf6 {[%emt 0:00:00]} 3. Nc3 {[%emt 0:00:00]} e5 {[%emt 0:00:00]} 4. Nf3 {[%emt 0:00:00]} Nbd7 {[%emt 0:00:00]} 5. Bc4 {[%emt 0:00:01]} Be7 {[%emt 0:00:00]} 6. O-O {[%emt 0:00:20]} c6 {[%emt 0:00:19]} 7. a4 {[%emt 0:00:19]} Qc7 {[%emt 0:00:06]} 8. Re1 {[%emt 0:00:36]} h6 {[%emt 0:00:12]} 9. h3 {[%emt 0:08:21]} Nf8 {[%emt 0:01:55] LiveBook: 9 Games} 10. Be3 {[%emt 0:03:12]} g5 {[%emt 0:26:36] [#]} (10... Ng6 $14) 11. dxe5 $1 {[%emt 0:24:42]} dxe5 {[%emt 0:00:03]} 12. Nxe5 $18 {[%emt 0:00:17]} Qxe5 {[%emt 0:00:08]} 13. Bd4 {[%emt 0:00:04]} Qa5 {[%emt 0:27:24]} 14. e5 {[%emt 0:00:41]} Be6 {[%emt 0:19:41]} 15. exf6 {[%emt 0:01:52]} Bb4 {[%emt 0:01:10]} 16. Bxe6 {[%emt 0:17:00]} Nxe6 {[%emt 0:00:02]} 17. Rxe6+ {[%emt 0:00:22]} fxe6 {[%emt 0:00:02]} 18. f7+ {[%emt 0:20:54]} Ke7 {[%emt 0:03:25]} 19. Bxh8 {[%emt 0:05:10]} Rxh8 {[%emt 0:00:02]} 20. Qd4 {[%emt 0:01:02]} Bxc3 {[%emt 0:04:03]} 21. bxc3 {[%emt 0:00:05]} Rf8 {[%emt 0:00:09]} 22. Rd1 {[%emt 0:02:03]} Rxf7 {[%emt 0:05:55]} 23. Qd6+ {[%emt 0:00:25]} Kf6 {[%emt 0:00:23]} 24. Rd3 {[%emt 0:00:33]} Qc7 {[%emt 0:02:31]} 25. Rf3+ {[%emt 0:02:24]} Kg7 {[%emt 0:00:13]} 26. Qd4+ {[%emt 0:03:27]} e5 {[%emt 0:00:14]} 27. Rxf7+ {[%emt 0:00:10]} Kxf7 {[%emt 0:00:01]} 28. Qxa7 {[%emt 0:00:09]} Ke6 {[%emt 0:01:21]} 29. Kf1 {[%emt 0:01:57]} Kd5 {[%emt 0:00:38]} 30. Qe3 {[%emt 0:00:56]} Qa5 {[%emt 0:00:46]} 31. Qf3+ {[%emt 0:01:22]} Ke6 {[%emt 0:03:51]} 32. Qg4+ {[%emt 0:00:22]} Kd5 {[%emt 0:00:47]} 33. Qd7+ {[%emt 0:01:35]} Kc5 {[%emt 0:01:06]} 34. Qxb7 {[%emt 0:03:12]} Qxa4 {[%emt 0:00:16]} 35. Qe7+ {[%emt 0:00:59]} Kd5 {[%emt 0:00:15]} 36. Qd7+ {[%emt 0:00:41]} Kc5 {[%emt 0:00:30]} 37. Qd3 {[%emt 0:00:27]} e4 {[%emt 0:02:23]} 38. Qe3+ {[%emt 0:01:27]} Kd5 {[%emt 0:00:15]} 39. Qd2+ {[%emt 0:00:19]} Kc5 {[%emt 0:00:13]} 40. Ke2 {[%emt 0:00:41]} Qc4+ {[%emt 0:01:56]} 41. Ke3 {[%emt 0:31:13]} Qf1 {[%emt 0:30:07]} 42. Qd4+ {[%emt 0:00:52]} Kb5 {[%emt 0:00:03]} 43. Qb4+ {[%emt 0:00:31]} Ka6 {[%emt 0:00:12]} 44. Qxe4 {[%emt 0:00:16]} Qe1+ {[%emt 0:01:21]} 45. Kf3 {[%emt 0:00:00]} Qc1 {[%emt 0:00:00]} 46. Qxc6+ {[%emt 0:00:00]} Ka5 {[%emt 0:00:00]} 47. Qd5+ {[%emt 0:00:00]} Ka6 {[%emt 0:00:00]} 48. Qd3+ {[%emt 0:00:00]} Ka5 {[%emt 0:00:00]} 49. c4 {[%emt 0:00:00]} Kb4 {[%emt 0:00:00]} 50. Qb3+ {[%emt 0:00:00]} 1-0

[Event "8th Amsterdam Summer Open-A 2018"]
[Site "Amsterdam"]
[Date "2018.07.14"]
[Round "8"]
[White "Van Baar, Esper"]
[Black "Elgersma, Onno"]
[Result "1/2-1/2"]
[ECO "E05"]
[WhiteElo "2252"]
[BlackElo "2150"]
[Annotator "NA"]
[PlyCount "159"]
[EventDate "2018.07.07"]
[EventType "swiss"]
[EventCountry "NED"]
[SourceTitle "playchess.com"]
[Source "ChessBase"]
[SourceQuality "1"]
[TimeControl "40/5400+30:1800+30"]

1. d4 {[%emt 0:08:36]} Nf6 {[%emt 0:00:01]} 2. Nf3 {[%emt 0:00:30]} e6 {[%emt 0:00:09]} 3. g3 {[%emt 0:00:27]} d5 {[%emt 0:01:01]} 4. Bg2 {[%emt 0:00:31]} Be7 {[%emt 0:00:20]} 5. O-O {[%emt 0:00:15]} O-O {[%emt 0:00:44]} 6. c4 {[%emt 0:00:10]} dxc4 {[%emt 0:01:49]} 7. Qc2 {[%emt 0:02:27]} a6 {[%emt 0:01:08]} 8. a4 {[%emt 0:00:05]} Bd7 {[%emt 0:00:35]} 9. Qxc4 {[%emt 0:00:31]} Bc6 {[%emt 0:00:27]} 10. Bg5 {[%emt 0:00:15]} a5 {[%emt 0:02:58]} 11. Nc3 {[%emt 0:02:41]} Nbd7 {[%emt 0:04:11]} 12. Rfd1 {[%emt 0:09:21]} h6 {[%emt 0:04:12]} 13. Bc1 {[%emt 0:04:58]} Nb6 {[%emt 0:04:45]} 14. Qb3 {[%emt 0:00:46]} Ne4 {[%emt 0:10:23]} 15. Ne5 {[%emt 0:23:31]} Nxc3 {[%emt 0:03:40]} 16. bxc3 {[%emt 0:02:08]} Bxg2 {[%emt 0:00:40]} 17. Kxg2 {[%emt 0:00:04]} Qd5+ {[%emt 0:01:30]} 18. Qxd5 {[%emt 0:00:05]} exd5 {[%emt 0:00:08]} 19. Ba3 {[%emt 0:01:26]} Rfe8 {[%emt 0:05:43]} 20. Bxe7 {[%emt 0:02:57]} Rxe7 {[%emt 0:02:20]} 21. e3 {[%emt 0:00:39]} f6 {[%emt 0:09:39]} 22. Nd3 {[%emt 0:00:13]} Nc4 {[%emt 0:00:58]} 23. Rab1 {[%emt 0:01:22]} c6 {[%emt 0:01:32]} 24. Nc5 {[%emt 0:09:32]} b6 {[%emt 0:03:23]} 25. Nb3 {[%emt 0:06:06]} Rb8 {[%emt 0:01:11]} 26. Nd2 {[%emt 0:09:43]} Nd6 {[%emt 0:03:58]} 27. Rdc1 {[%emt 0:00:55]} b5 {[%emt 0:13:59]} 28. c4 {[%emt 0:04:37]} Reb7 {[%emt 0:08:47]} 29. cxb5 {[%emt 0:01:34]} cxb5 {[%emt 0:00:18]} 30. Rc5 {[%emt 0:00:17]} bxa4 {[%emt 0:03:39]} 31. Rxb7 {[%emt 0:00:13]} Rxb7 {[%emt 0:00:04]} 32. Rxd5 {[%emt 0:01:11]} Nb5 {[%emt 0:05:48]} 33. Nc4 {[%emt 0:04:10]} a3 {[%emt 0:00:30]} 34. Nxa3 {[%emt 0:00:38]} Nxa3 {[%emt 0:00:07]} 35. Rxa5 {[%emt 0:00:04]} Nc2 {[%emt 0:00:59]} 36. Ra2 {[%emt 0:01:43]} Ne1+ {[%emt 0:03:57]} 37. Kf1 {[%emt 0:00:40]} Nd3 {[%emt 0:00:39]} 38. Ra3 {[%emt 0:02:01]} Nb2 {[%emt 0:02:00]} 39. h4 {[%emt 0:01:19]} Nc4 {[%emt 0:00:29]} 40. Ra4 {[%emt 0:00:46]} Nd2+ {[%emt 0:00:30]} 41. Kg2 {[%emt 0:05:40]} Rb2 {[%emt 0:02:06]} 42. d5 {[%emt 0:00:17]} f5 {[%emt 0:04:59]} 43. Rf4 {[%emt 0:02:20]} g6 {[%emt 0:00:50]} 44. h5 {[%emt 0:01:20]} Kg7 {[%emt 0:02:02]} 45. hxg6 {[%emt 0:00:07]} Kxg6 {[%emt 0:00:15]} 46. d6 {[%emt 0:05:35]} Rb8 {[%emt 0:01:49]} 47. g4 {[%emt 0:04:53]} fxg4 {[%emt 0:00:19]} 48. Rxg4+ {[%emt 0:00:56]} Kf5 {[%emt 0:00:41]} 49. Rg7 {[%emt 0:01:34]} Ne4 {[%emt 0:01:16]} 50. Rh7 {[%emt 0:02:58]} Rg8+ {[%emt 0:01:32]} 51. Kf1 {[%emt 0:00:19]} Rg6 {[%emt 0:00:44]} 52. d7 {[%emt 0:03:06]} Rd6 {[%emt 0:01:28]} 53. Rxh6 {[%emt 0:01:03]} Rxd7 {[%emt 0:00:29]} 54. Rh4 {[%emt 0:00:48]} Rd2 {[%emt 0:02:09]} 55. Rf4+ {[%emt 0:00:08]} Ke5 {[%emt 0:00:04]} 56. Ke1 {[%emt 0:00:34]} Ra2 {[%emt 0:00:15]} 57. Kf1 {[%emt 0:00:11]} Nd2+ {[%emt 0:01:40]} 58. Kg2 {[%emt 0:00:48]} Ra7 {[%emt 0:00:10]} 59. Rg4 {[%emt 0:00:29]} Rf7 {[%emt 0:00:20]} 60. Rg3 {[%emt 0:04:41]} Ne4 {[%emt 0:00:23]} 61. f4+ {[%emt 0:00:19]} Kd5 {[%emt 0:00:29]} 62. Rg8 {[%emt 0:00:06]} Nf6 {[%emt 0:01:06]} 63. Rg5+ {[%emt 0:00:44]} Ke4 {[%emt 0:01:05]} 64. Re5+ {[%emt 0:00:02]} Kd3 {[%emt 0:00:07]} 65. Kf3 {[%emt 0:01:08]} Rh7 {[%emt 0:02:37]} 66. Rf5 {[%emt 0:00:30]} Rh6 {[%emt 0:02:08]} 67. e4 {[%emt 0:00:49]} Kd4 {[%emt 0:00:44]} 68. e5 {[%emt 0:00:49]} Ne4 {[%emt 0:00:42]} 69. Rf8 {[%emt 0:00:06]} Nd2+ {[%emt 0:06:22]} 70. Kg4 {[%emt 0:00:07]} Ke4 {[%emt 0:01:31]} 71. Rf6 {[%emt 0:00:47]} Rh8 {[%emt 0:01:14]} 72. e6 {[%emt 0:00:36]} Re8 {[%emt 0:02:11]} 73. f5 {[%emt 0:01:03]} Ke5 {[%emt 0:01:03]} 74. Rf7 {[%emt 0:00:10]} Ne4 {[%emt 0:00:57]} 75. Kh5 {[%emt 0:02:24]} Nf6+ {[%emt 0:01:38]} 76. Kg6 {[%emt 0:00:17]} Rg8+ {[%emt 0:00:19]} 77. Rg7 {[%emt 0:00:37]} Rxg7+ {[%emt 0:00:55]} 78. Kxg7 {[%emt 0:00:06]} Kxf5 {[%emt 0:00:07]} 79. e7 {[%emt 0:00:02]} Ke6 {[%emt 0:00:16]} 80. e8=N {[%emt 0:00:06]} 1/2-1/2

[Event "8th Amsterdam Summer Open-A 2018"]
[Site "Amsterdam"]
[Date "2018.07.14"]
[Round "8"]
[White "Floor, Dirk"]
[Black "De Boer, Eelke"]
[Result "0-1"]
[ECO "E90"]
[WhiteElo "2196"]
[BlackElo "2317"]
[Annotator "NA"]
[PlyCount "142"]
[EventDate "2018.07.07"]
[EventType "swiss"]
[EventCountry "NED"]
[SourceTitle "playchess.com"]
[Source "ChessBase"]
[SourceQuality "1"]
[TimeControl "40/5400+30:1800+30"]

1. d4 {[%emt 0:00:49]} Nf6 {[%emt 0:00:00]} 2. c4 {[%emt 0:00:18]} g6 {[%emt 0:00:00]} 3. Nc3 {[%emt 0:00:24]} Bg7 {[%emt 0:00:00]} 4. e4 {[%emt 0:00:08]} d6 {[%emt 0:00:00]} 5. Bd3 {[%emt 0:00:10]} c5 {[%emt 0:10:25]} 6. d5 {[%emt 0:02:58]} e6 {[%emt 0:03:12]} 7. Nf3 {[%emt 0:03:08]} exd5 {[%emt 0:00:34]} 8. exd5 {[%emt 0:01:03]} O-O {[%emt 0:02:17]} 9. h3 {[%emt 0:00:32]} Re8+ {[%emt 0:03:11]} 10. Be3 {[%emt 0:00:21]} Na6 {[%emt 0:09:00]} 11. O-O {[%emt 0:00:53]} Nc7 {[%emt 0:00:27]} 12. a4 {[%emt 0:01:31]} Rb8 {[%emt 0:08:41]} 13. Qd2 {[%emt 0:05:46]} b6 {[%emt 0:07:27]} 14. Bg5 {[%emt 0:02:23]} Qd7 {[%emt 0:04:09]} 15. Rab1 {[%emt 0:12:46]} Bb7 {[%emt 0:06:34]} 16. Nh2 {[%emt 0:02:45]} Kh8 {[%emt 0:09:32]} 17. f4 {[%emt 0:06:03]} a6 {[%emt 0:06:46]} 18. f5 {[%emt 0:10:30]} Rf8 {[%emt 0:00:18]} 19. Rf4 {[%emt 0:05:50]} b5 {[%emt 0:05:29]} 20. axb5 {[%emt 0:01:22]} axb5 {[%emt 0:00:09]} 21. b3 {[%emt 0:06:30]} Kg8 {[%emt 0:04:16]} 22. Rbf1 {[%emt 0:03:14]} bxc4 {[%emt 0:00:14]} 23. bxc4 {[%emt 0:00:37]} Nce8 {[%emt 0:00:07]} 24. fxg6 {[%emt 0:03:23]} fxg6 {[%emt 0:00:15]} 25. Qf2 {[%emt 0:01:15]} h6 {[%emt 0:03:49]} 26. Bxf6 {[%emt 0:02:12]} Rxf6 {[%emt 0:00:28]} 27. Ng4 {[%emt 0:01:30]} Rxf4 {[%emt 0:08:41]} 28. Qxf4 {[%emt 0:00:32]} Bd4+ {[%emt 0:04:26]} 29. Kh1 {[%emt 0:00:21]} Qg7 {[%emt 0:00:11]} 30. Nxh6+ {[%emt 0:03:40]} Kh7 {[%emt 0:00:09]} 31. Nf5 {[%emt 0:00:56]} gxf5 {[%emt 0:01:59]} 32. Bxf5+ {[%emt 0:00:44]} Kg8 {[%emt 0:00:06]} 33. Be6+ {[%emt 0:00:37]} Kh7 {[%emt 0:00:15]} 34. Qh4+ {[%emt 0:01:01]} Qh6 {[%emt 0:01:13]} 35. Qe4+ {[%emt 0:10:37]} Kh8 {[%emt 0:00:45]} 36. Ne2 {[%emt 0:02:42]} Nf6 {[%emt 0:00:39]} 37. Qf5 {[%emt 0:01:51]} Be5 {[%emt 0:00:22]} 38. Nf4 {[%emt 0:02:05]} Kg7 {[%emt 0:00:37]} 39. Bd7 {[%emt 0:02:26]} Bxf4 {[%emt 0:02:13]} 40. Rxf4 {[%emt 0:00:35]} Rf8 {[%emt 0:00:31]} 41. Rf3 {[%emt 0:06:52]} Qg6 {[%emt 0:11:17]} 42. Qe6 {[%emt 0:00:36]} Qf7 {[%emt 0:00:16]} 43. Qxd6 {[%emt 0:01:18]} Qxd7 {[%emt 0:03:34]} 44. Rxf6 {[%emt 0:00:11]} Qxd6 {[%emt 0:01:18]} 45. Rxd6 {[%emt 0:00:02]} Rf6 {[%emt 0:00:37]} 46. Rd7+ {[%emt 0:00:44]} Rf7 {[%emt 0:00:07]} 47. Rd6 {[%emt 0:00:14]} Kf8 {[%emt 0:01:26]} 48. g4 {[%emt 0:00:55]} Ke7 {[%emt 0:01:14]} 49. Rb6 {[%emt 0:00:14]} Kd8 {[%emt 0:00:08]} 50. Rb5 {[%emt 0:01:32]} Rc7 {[%emt 0:00:32]} 51. Ra5 {[%emt 0:01:02]} Ke7 {[%emt 0:00:44]} 52. Kh2 {[%emt 0:00:13]} Kd6 {[%emt 0:00:12]} 53. Kg3 {[%emt 0:01:22]} Ke5 {[%emt 0:00:18]} 54. h4 {[%emt 0:01:03]} Kd4 {[%emt 0:00:35]} 55. Ra4 {[%emt 0:00:17]} Re7 {[%emt 0:01:45]} 56. h5 {[%emt 0:00:28]} Bc8 {[%emt 0:03:19]} 57. Ra8 {[%emt 0:04:38]} Bd7 {[%emt 0:01:02]} 58. Ra7 {[%emt 0:02:25]} Kxc4 {[%emt 0:06:28]} 59. d6 {[%emt 0:01:51]} Rg7 {[%emt 0:00:12]} 60. h6 {[%emt 0:04:40]} Rxg4+ {[%emt 0:00:16]} 61. Kf3 {[%emt 0:00:15]} Rh4 {[%emt 0:01:47]} 62. Rxd7 {[%emt 0:01:36]} Rxh6 {[%emt 0:00:09]} 63. Ke4 {[%emt 0:00:15]} Re6+ {[%emt 0:00:24]} 64. Kf5 {[%emt 0:00:12]} Kd5 {[%emt 0:01:42]} 65. Rd8 {[%emt 0:01:17]} c4 {[%emt 0:01:46]} 66. d7 {[%emt 0:00:20]} Rd6 {[%emt 0:00:18]} 67. Kf4 {[%emt 0:01:22]} Kd4 {[%emt 0:00:16]} 68. Kf3 {[%emt 0:00:22]} Kd3 {[%emt 0:00:24]} 69. Kf4 {[%emt 0:01:38]} Rd5 {[%emt 0:00:16]} 70. Rh8 {[%emt 0:03:11]} Rxd7 {[%emt 0:00:12]} 71. Rh3+ {[%emt 0:00:41]} Kc2 {[%emt 0:00:18]} 0-1